fUST/lending_fUST_20250923
["ID","MTS","AMOUNT","RATE_DAILY","PERIOD"]
[387169250,1758604232278,-480.0,0.00019898,2]
[387169251,1758604232288,-297.70534993,0.00019898,2]
[387169252,1758604232299,-182.29465007,0.00019898,2]
[387169253,1758604232309,-358.31318224,0.00019898,2]
[387169435,1758604238098,-227.15067463,0.00019898,2]
[387169436,1758604238108,-480.0,0.00019898,2]
[387169437,1758604238118,-480.0,0.00019898,2]
[387169438,1758604238127,-480.0,0.00019899,2]
[387169439,1758604238137,-480.0,0.00019899,2]
[387169440,1758604238146,-480.0,0.00019899,2]
[387169441,1758604238155,-480.0,0.00019899,2]
[387169442,1758604238165,-484.13395977,0.00019899,2]
[387169443,1758604238174,-485.34798451,0.00019899,2]
[387169444,1758604238183,-480.0,0.00019899,2]
[387169445,1758604238193,-1531.06902805,0.000199,2]
[387169446,1758604238202,-480.0,0.00019946,2]
[387169447,1758604238211,-480.0,0.00019946,2]
[387169448,1758604238221,-480.0,0.00019946,2]
[387169449,1758604238230,-480.0,0.00019946,2]
[387169450,1758604238240,-480.0,0.00019946,2]
[387169451,1758604238249,-480.0,0.00019946,2]
[387169452,1758604238258,-412.81848424,0.00019946,2]
[387169453,1758604238267,-480.0,0.00019946,2]
[387169454,1758604238275,-480.0,0.00019946,2]
[387169455,1758604238285,-503.67993404,0.00019946,2]
[387169456,1758604238294,-480.0,0.00019946,2]
[387169457,1758604238303,-38.99329364,0.00019946,2]
[387169458,1758604238315,-258.38561272,0.00019946,2]
[387169459,1758604238325,-480.0,0.00019946,2]
[387169460,1758604238334,-480.0,0.00019946,2]
[387169461,1758604238343,-480.0,0.00019946,2]
[387169462,1758604238352,-1941.61443728,0.00019947,2]
[387169463,1758604238365,-1076.28354252,0.00019947,2]
[387169464,1758604238374,-811.15213375,0.00019947,2]
[387169465,1758604238385,-594.82644238,0.00019947,2]
[387169466,1758604238396,-8758.72521487,0.00019947,2]
[387169467,1758604238407,-151.38983603,0.0002,2]
[387169468,1758604238419,-250.41389591,0.00020101,2]
[387169469,1758604238430,-486.83194119,0.0002017,2]
[387169470,1758604238441,-485.60816213,0.0002017,2]
[387169471,1758604238452,-480.0,0.0002017,2]
[387169472,1758604238463,-480.0,0.0002017,2]
[387169473,1758604238474,-480.0,0.0002017,2]
[387169474,1758604238485,-480.0,0.0002017,2]
[387169475,1758604238496,-480.0,0.0002017,2]
[387169476,1758604238506,-480.0,0.0002017,2]
[387169477,1758604238517,-484.4365551,0.00020171,2]
[387169478,1758604238527,-1012.52,0.00020171,2]
[387169479,1758604238539,-480.0,0.00020171,2]
[387169480,1758604238552,-10.31076477,0.00020171,2]
[387169483,1758604242208,-0.00749386,0.00020171,2]
[387169542,1758604243236,-469.68174137,0.00020171,2]
[387169544,1758604243246,-66.43755952,0.00020171,2]
[387169555,1758604243404,-1756.94244048,0.00020171,2]
[387169556,1758604243422,-480.0,0.00020171,2]
[387169557,1758604243432,-480.0,0.00020172,2]
[387169558,1758604243441,-480.0,0.00020172,2]
[387169559,1758604243450,-480.0,0.00020173,2]
[387169560,1758604243459,-480.0,0.00020173,2]
[387169561,1758604243468,-480.0,0.0002022,2]
[387169562,1758604243477,-480.0,0.0002022,2]
[387169563,1758604243486,-480.0,0.0002022,2]
[387169564,1758604243495,-480.0,0.0002022,2]
[387169565,1758604243504,-480.0,0.0002022,2]
[387169566,1758604243513,-480.0,0.0002022,2]
[387169567,1758604243522,-480.0,0.0002022,2]
[387169568,1758604243531,-480.0,0.0002022,2]
[387169570,1758604243540,-480.0,0.0002022,2]
[387169571,1758604243550,-1000.0,0.00020241,2]
[387169573,1758604243559,-1000.0,0.00020241,2]
[387169575,1758604243568,-1044.82418463,0.00020241,2]
[387169577,1758604243578,-480.0,0.00020444,2]
[387169579,1758604243587,-480.0,0.00020444,2]
[387169581,1758604243597,-480.0,0.00020444,2]
[387169583,1758604243606,-480.0,0.00020444,2]
[387169585,1758604243616,-480.0,0.00020444,2]
[387169587,1758604243625,-948.07452034,0.00020445,2]
[387170662,1758605068077,16652.91136209,0.00029205,120]
[387170665,1758605317992,7283.7022084,0.00015,2]
[387170679,1758605432448,-170.7651655,0.00019144,2]
[387170680,1758605432457,-169.950401,0.00019384,2]
[387170681,1758605432467,-484.56553372,0.000199,2]
[387170722,1758605438437,-829.69530708,0.000199,2]
[387170723,1758605438446,-167.75417126,0.00019945,2]
[387170724,1758605438457,-393.04281597,0.00019945,2]
[387170764,1758605440403,-639.20301277,0.00019945,2]
[387170766,1758605440414,-193.0,0.00019945,2]
[387170768,1758605440423,-300.0,0.00019945,2]
[387170770,1758605440432,-173.0,0.00019945,2]
[387170772,1758605440441,-300.0,0.00019945,2]
[387170774,1758605440450,-489.50382487,0.00019946,2]
[387170776,1758605440459,-321.26438457,0.00019946,2]
[387170927,1758605758005,-236.55179015,0.00018335,2]
[387170929,1758605765957,-165.48631378,0.00018335,2]
[387170930,1758605768105,-224.37166608,0.00018335,2]
[387170931,1758605770219,-250.0,0.00018335,2]
[387170932,1758605795284,-96.7992819,0.00018335,2]
[387170933,1758605795307,-58.83387543,0.00018335,2]
[387170935,1758605856454,285.721208,0.00017785,2]
[387170953,1758606060846,3830.109496,0.00017418,2]
[387170962,1758606120616,550.0,0.00027397,120]
[387170966,1758606134776,552.0,0.00027397,120]
[387170967,1758606149533,552.0,0.00027397,120]
[387170986,1758606436931,200000.0,0.00029207,60]
[387170990,1758606455398,-3000000.0,0.00029207,20]
[387171058,1758606638640,-2000.0,0.00018335,2]
[387171060,1758606638650,-2000.0,0.00018335,2]
[387171062,1758606638660,-199.00647253,0.00018335,2]
[387171242,1758606640675,-1800.99352747,0.00018335,2]
[387171244,1758606640684,-2000.0,0.00018335,2]
[387171246,1758606640694,-2000.0,0.00018335,2]
[387171248,1758606640705,-5000.0,0.00019178,2]
[387171250,1758606640714,-500.0,0.000192,2]
[387171252,1758606640723,-169.9504024,0.00019347,2]
[387171254,1758606640733,-516.82051197,0.00019347,2]
[387171256,1758606640742,-200.35178519,0.00019468,2]
[387171258,1758606640751,-251.29191159,0.00019501,2]
[387171259,1758606640760,-780.0,0.00019898,2]
[387171261,1758606640770,-300.0,0.00019899,2]
[387171263,1758606640779,-300.0,0.00019899,2]
[387171265,1758606640788,-300.0,0.00019899,2]
[387171267,1758606640799,-300.0,0.00019899,2]
[387171268,1758606640809,-300.0,0.00019899,2]
[387171270,1758606640817,-2892.98053902,0.000199,2]
[387171272,1758606640827,-529.50202709,0.00020034,2]
[387171274,1758606640836,-2924.3750803,0.00020104,2]
[387171276,1758606640846,-163.17625355,0.000203,2]
[387171278,1758606640856,-1200.0,0.00020314,2]
[387171279,1758606640865,-480.0,0.00020314,2]
[387171281,1758606640875,-480.0,0.00020314,2]
[387171283,1758606640884,-482.33916423,0.00020314,2]
[387171285,1758606640894,-480.0,0.00020314,2]
[387171287,1758606640903,-286.02592933,0.00020315,2]
[387171289,1758606640913,-477.10875645,0.00020315,2]
[387171290,1758606640922,-484.05635111,0.00020315,2]
[387171292,1758606640931,-491.89670702,0.00020315,2]
[387171294,1758606640941,-480.0,0.00020315,2]
[387171296,1758606640950,-480.0,0.00020315,2]
[387171297,1758606640963,-480.0,0.00020315,2]
[387171298,1758606640972,-480.0,0.00020315,2]
[387171299,1758606640982,-480.0,0.00020315,2]
[387171300,1758606640991,-480.0,0.00020315,2]
[387171301,1758606641000,-485.31508923,0.00020315,2]
[387171302,1758606641010,-485.1213207,0.00020315,2]
[387171303,1758606641019,-483.70519426,0.00020315,2]
[387171304,1758606641028,-40762.27930225,0.00020315,2]
[387171305,1758606641048,-9237.72069775,0.00020315,2]
[387171306,1758606641058,-330.105404,0.000204,2]
[387171307,1758606641067,-881.36073569,0.00020413,2]
[387171308,1758606641076,-881.36073569,0.00020413,2]
[387171309,1758606641085,-881.36073569,0.00020413,2]
[387171310,1758606641095,-881.36073569,0.00020413,2]
[387171311,1758606641104,-881.36073569,0.00020413,2]
[387171312,1758606641114,-881.36073569,0.00020413,2]
[387171313,1758606641123,-881.36073569,0.00020413,2]
[387171314,1758606641132,-881.36073569,0.00020413,2]
[387171315,1758606641142,-881.36073569,0.00020413,2]
[387171316,1758606641151,-881.36073569,0.00020413,2]
[387171317,1758606641160,-881.36073569,0.00020413,2]
[387171318,1758606641170,-881.36073569,0.00020413,2]
[387171319,1758606641179,-881.36073569,0.00020413,2]
[387171320,1758606641188,-881.36073569,0.00020413,2]
[387171321,1758606641199,-881.36073569,0.00020413,2]
[387171322,1758606641208,-881.36073569,0.00020413,2]
[387171323,1758606641218,-881.36073569,0.00020413,2]
[387171324,1758606641227,-881.36073569,0.00020413,2]
[387171325,1758606641236,-881.36073569,0.00020413,2]
[387171326,1758606641245,-881.36073569,0.00020413,2]
[387171327,1758606641254,-881.36073569,0.00020413,2]
[387171328,1758606641264,-881.36073569,0.00020413,2]
[387171329,1758606641273,-881.36073569,0.00020413,2]
[387171330,1758606641282,-881.36073569,0.00020413,2]
[387171331,1758606641291,-881.36073569,0.00020413,2]
[387171332,1758606641300,-881.36073569,0.00020413,2]
[387171333,1758606641309,-881.36073569,0.00020413,2]
[387171334,1758606641318,-881.36073569,0.00020413,2]
[387171335,1758606641327,-881.36073569,0.00020413,2]
[387171337,1758606641337,-881.36073569,0.00020413,2]
[387171338,1758606641346,-881.36073569,0.00020413,2]
[387171339,1758606641355,-881.36073569,0.00020413,2]
[387171341,1758606641365,-881.36073569,0.00020413,2]
[387171342,1758606641374,-881.36073569,0.00020413,2]
[387171343,1758606641383,-881.36073569,0.00020413,2]
[387171345,1758606641392,-881.36073569,0.00020413,2]
[387171347,1758606641402,-881.36073569,0.00020413,2]
[387171349,1758606641411,-881.36073569,0.00020413,2]
[387171351,1758606641420,-881.36073569,0.00020413,2]
[387171353,1758606641428,-881.36073569,0.00020413,2]
[387171355,1758606641437,-881.36073569,0.00020413,2]
[387171357,1758606641447,-881.36073569,0.00020413,2]
[387171359,1758606641456,-881.36073569,0.00020413,2]
[387171361,1758606641465,-881.36073569,0.00020413,2]
[387171363,1758606641474,-881.36073569,0.00020413,2]
[387171365,1758606641483,-881.36073569,0.00020413,2]
[387171367,1758606641492,-881.36073569,0.00020413,2]
[387171369,1758606641501,-881.36073569,0.00020413,2]
[387171371,1758606641510,-881.36073569,0.00020413,2]
[387171373,1758606641519,-881.36073569,0.00020413,2]
[387171375,1758606641528,-881.36073569,0.00020413,2]
[387171377,1758606641537,-881.36073569,0.00020413,2]
[387171379,1758606641548,-881.36073569,0.00020413,2]
[387171381,1758606641558,-881.36073569,0.00020413,2]
[387171383,1758606641567,-881.36073569,0.00020413,2]
[387171385,1758606641576,-161.94105138,0.00020414,2]
[387171387,1758606641586,-2545.8,0.00020414,2]
[387171389,1758606641595,-229.00869393,0.00020414,2]
[387171391,1758606641604,-480.0,0.00020414,2]
[387171393,1758606641613,-480.0,0.00020414,2]
[387171395,1758606641622,-481.04571863,0.00020414,2]
[387171397,1758606641631,-498.63,0.00020431,3]
[387171399,1758606641640,-249.31,0.00020431,3]
[387171401,1758606641649,-747.97,0.00020431,3]
[387171403,1758606641659,-481.88447127,0.00020441,2]
[387171405,1758606641667,-448.28851135,0.00020441,2]
[387171407,1758606641676,-365.86742473,0.00020441,2]
[387171409,1758606641685,-486.81608339,0.00020441,2]
[387171411,1758606641694,-480.0,0.00020441,2]
[387171413,1758606641703,-480.0,0.00020441,2]
[387171415,1758606641712,-483.15038719,0.00020441,2]
[387171417,1758606641721,-480.0,0.00020441,2]
[387171419,1758606641730,-480.0,0.00020441,2]
[387171421,1758606641740,-480.0,0.00020441,2]
[387171422,1758606641749,-480.0,0.00020441,2]
[387171424,1758606641758,-480.0,0.00020441,2]
[387171426,1758606641768,-480.0,0.00020441,2]
[387171428,1758606641777,-480.0,0.00020441,2]
[387171430,1758606641786,-480.0,0.00020441,2]
[387171432,1758606641798,-425.5357406,0.00020441,2]
[387171434,1758606641809,-484.13639002,0.00020441,2]
[387171437,1758606641819,-480.0,0.00020441,2]
[387171439,1758606641828,-173.18302609,0.00020441,2]
[387171440,1758606641838,-428.97,0.00020441,2]
[387171442,1758606641849,-480.0,0.00020441,2]
[387171444,1758606641858,-480.0,0.00020441,2]
[387171446,1758606641868,-480.0,0.00020441,2]
[387171448,1758606641880,-264.51318946,0.00020441,2]
[387171451,1758606641891,-485.58088374,0.00020441,2]
[387171453,1758606641902,-488.13621107,0.00020441,2]
[387171455,1758606641911,-492.4606875,0.00020441,2]
[387171457,1758606641920,-548.63,0.00020441,2]
[387171459,1758606641929,-210.37671908,0.00020441,2]
[387171461,1758606641939,-483.73147268,0.00020441,2]
[387171463,1758606641949,-484.93823233,0.00020441,2]
[387171465,1758606641959,-485.09727503,0.00020441,2]
[387171467,1758606641968,-481.83390713,0.00020441,2]
[387171468,1758606641977,-480.0,0.00020441,2]
[387171470,1758606641987,-319.04273171,0.00020441,2]
[387171472,1758606641995,-490.16836839,0.00020441,2]
[387171474,1758606642005,-480.0,0.00020441,2]
[387171476,1758606642015,-482.19085716,0.00020441,2]
[387171478,1758606642024,-480.0,0.00020441,2]
[387171480,1758606642034,-480.0,0.00020441,2]
[387171483,1758606642043,-156.47341461,0.00020441,2]
[387171485,1758606642054,-489.78103183,0.00020441,2]
[387171487,1758606642063,-480.0,0.00020441,2]
[387171489,1758606642072,-480.0,0.00020441,2]
[387171491,1758606642081,-482.62513456,0.00020441,2]
[387171493,1758606642090,-507.56198147,0.00020441,2]
[387171495,1758606642100,-480.0,0.00020441,2]
[387171497,1758606642109,-557.55911355,0.00020441,2]
[387171499,1758606642118,-481.08949607,0.00020441,2]
[387171500,1758606642127,-482.15436488,0.00020441,2]
[387171503,1758606642137,-200.0,0.00020441,10]
[387171505,1758606642146,-200.0,0.00020441,10]
[387171507,1758606642156,-165.25106,0.00020441,10]
[387171508,1758606642165,-481.66092018,0.00020441,2]
[387171510,1758606642174,-480.0,0.00020441,2]
[387171512,1758606642183,-483.35381354,0.00020441,2]
[387171515,1758606642193,-481.38231258,0.00020441,2]
[387171517,1758606642203,-416.55449035,0.00020441,2]
[387171518,1758606642212,-485.87382089,0.00020441,2]
[387171520,1758606642221,-483.91199557,0.00020441,2]
[387171523,1758606642230,-500.0,0.00020442,2]
[387171525,1758606642240,-482.757772,0.00020442,2]
[387171526,1758606642249,-1337.25,0.00020442,2]
[387171528,1758606642258,-480.0,0.00020442,2]
[387171530,1758606642267,-488.81,0.00020442,2]
[387171532,1758606642277,-161.31900609,0.00020473,2]
[387171534,1758606642287,-501.17780857,0.00020473,2]
[387171536,1758606642296,-501.9394804,0.00020473,2]
[387171538,1758606642306,-500.62316815,0.00020473,2]
[387171540,1758606642315,-500.0,0.00020473,2]
[387171542,1758606642324,-500.0,0.00020473,2]
[387171544,1758606642334,-500.0,0.00020473,2]
[387171546,1758606642343,-500.87424643,0.00020473,2]
[387171548,1758606642353,-501.19482266,0.00020473,2]
[387171550,1758606642363,-500.58685143,0.00020473,2]
[387171552,1758606642372,-500.23735584,0.00020473,2]
[387171555,1758606642381,-500.0,0.00020473,2]
[387171556,1758606642390,-341.46528074,0.00020473,2]
[387171569,1758606642496,-501.09909786,0.00020473,2]
[387171571,1758606642506,-922.88,0.00020475,2]
[387171573,1758606642515,-480.0,0.00020588,2]
[387171575,1758606642524,-480.0,0.00020588,2]
[387171577,1758606642533,-480.0,0.00020589,2]
[387171579,1758606642542,-480.0,0.00020589,2]
[387171581,1758606642551,-480.0,0.00020589,2]
[387171583,1758606642560,-366.07272362,0.00020589,2]
[387171584,1758606642569,-480.0,0.00020589,2]
[387171587,1758606642579,-500.0,0.00020589,2]
[387171588,1758606642588,-151.95306677,0.00020589,2]
[387171590,1758606642598,-2545.8,0.00020688,2]
[387171593,1758606642607,-480.0,0.00020688,2]
[387171594,1758606642616,-480.0,0.00020715,2]
[387171597,1758606642626,-480.0,0.00020715,2]
[387171599,1758606642635,-480.0,0.00020715,2]
[387171601,1758606642645,-480.0,0.00020715,2]
[387171602,1758606642654,-480.0,0.00020715,2]
[387171605,1758606642664,-480.0,0.00020715,2]
[387171607,1758606642673,-480.34,0.00020715,2]
[387171609,1758606642682,-480.0,0.00020715,2]
[387171611,1758606642691,-480.0,0.00020715,2]
[387171612,1758606642701,-480.0,0.00020715,2]
[387171614,1758606642710,-480.0,0.00020715,2]
[387171617,1758606642719,-548.63,0.00020715,2]
[387171619,1758606642729,-480.0,0.00020715,2]
[387171621,1758606642739,-480.0,0.00020715,2]
[387171622,1758606642750,-480.0,0.00020715,2]
[387171624,1758606642758,-172.40491069,0.00020716,2]
[387171626,1758606642768,-151.0,0.00020716,2]
[387171628,1758606642777,-151.03086125,0.00020716,2]
[387171630,1758606642786,-199.03328293,0.00020716,2]
[387171632,1758606642798,-1337.25,0.00020716,2]
[387171634,1758606642809,-480.0,0.00020716,2]
[387171636,1758606642818,-488.81,0.00020716,2]
[387171638,1758606642828,-266.66,0.0002073,3]
[387171640,1758606642838,-997.25,0.0002073,3]
[387171643,1758606642849,-200.0,0.0002074,2]
[387171645,1758606642859,-20746.26328358,0.0002074,2]
[387171647,1758606642868,-181.08010149,0.0002074,2]
[387171650,1758606642879,-200.0,0.0002074,2]
[387171653,1758606642888,-200.0,0.0002074,2]
[387171656,1758606642898,-259.78566934,0.0002074,2]
[387171658,1758606642907,-350.0,0.0002074,2]
[387171660,1758606642916,-350.0,0.0002074,2]
[387171662,1758606642925,-350.0,0.0002074,2]
[387171665,1758606642935,-350.0,0.0002074,2]
[387171667,1758606642944,-350.0,0.0002074,2]
[387171669,1758606642953,-350.0,0.0002074,2]
[387171672,1758606642963,-350.0,0.0002074,2]
[387171674,1758606642972,-350.0,0.0002074,2]
[387171676,1758606642982,-350.0,0.0002074,2]
[387171678,1758606642990,-151.0,0.0002074,2]
[387171681,1758606643000,-350.0,0.0002074,2]
[387171683,1758606643009,-350.0,0.0002074,2]
[387171685,1758606643018,-151.0,0.0002074,2]
[387171687,1758606643028,-151.20331388,0.0002074,2]
[387171689,1758606643037,-350.0,0.0002074,2]
[387171691,1758606643046,-151.0,0.0002074,2]
[387171693,1758606643056,-450.94775226,0.0002074,2]
[387171695,1758606643065,-153.11569432,0.0002074,2]
[387171697,1758606643074,-500.0,0.0002074,2]
[387171699,1758606643084,-500.0,0.0002074,2]
[387171701,1758606643093,-500.0,0.0002074,2]
[387171703,1758606643102,-503.60402613,0.00020773,2]
[387171705,1758606643111,-1016.3123647,0.0002085,2]
[387171707,1758606643122,-480.0,0.00020862,2]
[387171709,1758606643131,-480.0,0.00020862,2]
[387171711,1758606643141,-500.0,0.00020863,2]
[387171713,1758606643151,-480.0,0.00020863,2]
[387171715,1758606643160,-480.0,0.00020863,2]
[387171717,1758606643170,-10235.63103341,0.0002089,2]
[387171719,1758606643179,-978.0,0.0002095,2]
[387171721,1758606643189,-635.0,0.0002095,2]
[387171723,1758606643198,-2159.0,0.0002095,2]
[387171725,1758606643208,-2545.8,0.00020962,2]
[387171727,1758606643218,-480.0,0.00020962,2]
[387171729,1758606643228,-549.74742769,0.00020972,2]
[387171731,1758606643237,-500.0,0.00020972,2]
[387171733,1758606643246,-376.56466298,0.00020972,2]
[387171735,1758606643256,-420.40097155,0.00020972,2]
[387171737,1758606643265,-500.0,0.00020972,2]
[387171739,1758606643274,-500.0,0.00020972,2]
[387171741,1758606643283,-500.0,0.00020972,2]
[387171743,1758606643292,-500.0,0.00020972,2]
[387171745,1758606643303,-500.0,0.00020972,2]
[387171747,1758606643312,-2892.98053894,0.00020972,2]
[387171749,1758606643321,-500.90154524,0.00020973,2]
[387171751,1758606643331,-500.0,0.00020973,2]
[387171753,1758606643340,-501.07239708,0.00020973,2]
[387171755,1758606643349,-500.61445677,0.00020973,2]
[387171757,1758606643359,-500.23869768,0.00020973,2]
[387171759,1758606643368,-500.15238122,0.00020973,2]
[387171761,1758606643377,-500.98875679,0.00020973,2]
[387171763,1758606643386,-500.0,0.00020973,2]
[387171765,1758606643395,-500.0,0.00020973,2]
[387171767,1758606643404,-500.0,0.00020973,2]
[387171768,1758606643413,-500.0,0.00020973,2]
[387171770,1758606643422,-500.0,0.00020973,2]
[387171772,1758606643432,-159.20528801,0.00020973,2]
[387171774,1758606643441,-500.0,0.00020973,2]
[387171776,1758606643451,-500.4762229,0.00020973,2]
[387171778,1758606643461,-480.0,0.00020989,2]
[387171780,1758606643470,-480.0,0.00020989,2]
[387171782,1758606643480,-480.0,0.00020989,2]
[387171784,1758606643490,-480.0,0.00020989,2]
[387171787,1758606643500,-480.0,0.00020989,2]
[387171789,1758606643509,-480.0,0.00020989,2]
[387171791,1758606643519,-480.0,0.00020989,2]
[387171792,1758606643529,-480.0,0.00020989,2]
[387171794,1758606643538,-480.0,0.00020989,2]
[387171796,1758606643547,-480.0,0.00020989,2]
[387171798,1758606643556,-548.63,0.00020989,2]
[387171800,1758606643566,-480.0,0.00020989,2]
[387171802,1758606643575,-480.0,0.00020989,2]
[387171804,1758606643585,-480.0,0.00020989,2]
[387171806,1758606643594,-245.0,0.0002099,2]
[387171808,1758606643603,-1337.25,0.0002099,2]
[387171810,1758606643612,-100000.0,0.0002099,2]
[387171812,1758606643621,-480.0,0.0002099,2]
[387171814,1758606643631,-488.81,0.0002099,2]
[387171816,1758606643640,-2118.00810836,0.00021002,2]
[387171818,1758606643650,-233.58652103,0.00021061,2]
[387171820,1758606643660,-160.0,0.00021061,2]
[387171822,1758606643670,-160.0,0.00021061,2]
[387171824,1758606643679,-160.0,0.00021061,2]
[387171826,1758606643688,-199.0,0.00021061,2]
[387171828,1758606643700,-417.15472785,0.00021061,2]
[387171830,1758606643710,-480.0,0.00021136,2]
[387171832,1758606643719,-480.0,0.00021136,2]
[387171834,1758606643728,-500.0,0.00021137,2]
[387171836,1758606643738,-198.0,0.00021233,4]
[387171838,1758606643747,-2545.8,0.00021236,2]
[387171840,1758606643756,-480.0,0.00021236,2]
[387171842,1758606643765,-480.0,0.00021263,2]
[387171844,1758606643774,-480.0,0.00021263,2]
[387171846,1758606643783,-480.0,0.00021263,2]
[387171848,1758606643794,-480.0,0.00021263,2]
[387171850,1758606643808,-480.0,0.00021263,2]
[387171852,1758606643817,-480.0,0.00021263,2]
[387171854,1758606643826,-480.0,0.00021263,2]
[387171856,1758606643836,-480.0,0.00021263,2]
[387171858,1758606643846,-548.63,0.00021263,2]
[387171860,1758606643856,-480.0,0.00021263,2]
[387171862,1758606643865,-543.83,0.00021263,2]
[387171864,1758606643876,-480.0,0.00021263,2]
[387171866,1758606643885,-1337.25,0.00021264,2]
[387171868,1758606643895,-480.0,0.00021264,2]
[387171870,1758606643905,-488.81,0.00021264,2]
[387171872,1758606643914,-21513.87502507,0.00021288,2]
[387171874,1758606643924,-480.0,0.0002141,2]
[387171876,1758606643933,-480.0,0.0002141,2]
[387171877,1758606643942,-500.0,0.00021411,2]
[387171879,1758606643953,-2545.8,0.0002151,2]
[387171881,1758606643963,-186.82,0.0002151,2]
[387171883,1758606643973,-1000.0,0.00021521,2]
[387171885,1758606643983,-1000.0,0.00021521,2]
[387171887,1758606643993,-480.0,0.00021537,2]
[387171889,1758606644002,-480.0,0.00021537,2]
[387171891,1758606644011,-480.0,0.00021537,2]
[387171893,1758606644021,-480.0,0.00021537,2]
[387171895,1758606644031,-480.0,0.00021537,2]
[387171897,1758606644040,-586.54758871,0.00021537,2]
[387171899,1758606644050,-548.63,0.00021537,2]
[387171901,1758606644060,-393.8,0.00021537,2]
[387171903,1758606644070,-530.55,0.00021537,2]
[387171905,1758606644080,-1337.25,0.00021538,2]
[387171907,1758606644090,-480.0,0.00021538,2]
[387171909,1758606644100,-488.81,0.00021538,2]
[387171911,1758606644109,-480.0,0.00021684,2]
[387171913,1758606644118,-480.0,0.00021684,2]
[387171915,1758606644128,-500.0,0.00021685,2]
[387171917,1758606644137,-2545.8,0.00021784,2]
[387171919,1758606644147,-1000.0,0.000218,3]
[387171921,1758606644156,-997.26,0.00021801,3]
[387171923,1758606644165,-498.62,0.00021801,3]
[387171925,1758606644175,-480.0,0.00021811,2]
[387171927,1758606644184,-480.0,0.00021811,2]
[387171929,1758606644193,-480.0,0.00021811,2]
[387171931,1758606644203,-480.0,0.00021811,2]
[387171933,1758606644212,-480.0,0.00021811,2]
[387171935,1758606644222,-548.63,0.00021811,2]
[387171937,1758606644231,-1337.25,0.00021812,2]
[387171939,1758606644240,-480.0,0.00021812,2]
[387171941,1758606644249,-488.81,0.00021812,2]
[387171943,1758606644258,-1016.31236467,0.00021845,2]
[387171945,1758606644267,-509.04241871,0.00021917,2]
[387171947,1758606644277,-154.28089581,0.00021918,2]
[387171949,1758606644286,-480.0,0.00021958,2]
[387171951,1758606644295,-480.0,0.00021958,2]
[387171953,1758606644304,-500.0,0.00021959,2]
[387171955,1758606644313,-4760.75272557,0.0002197,2]
[387171957,1758606644323,-500.0,0.00021973,2]
[387171959,1758606644332,-500.0,0.00021973,2]
[387171961,1758606644342,-500.0,0.00021973,2]
[387171963,1758606644352,-211.63,0.00022,2]
[387171965,1758606644361,-2892.98053894,0.00022044,2]
[387171967,1758606644370,-2545.8,0.00022058,2]
[387171968,1758606644379,-1500.0,0.00022068,2]
[387171970,1758606644388,-1500.0,0.00022068,2]
[387171972,1758606644397,-480.0,0.00022085,2]
[387171974,1758606644406,-480.0,0.00022085,2]
[387171976,1758606644415,-480.0,0.00022085,2]
[387171977,1758606644425,-480.0,0.00022085,2]
[387171978,1758606644434,-339.2,0.00022085,2]
[387171979,1758606644443,-548.63,0.00022085,2]
[387171980,1758606644454,-1337.25,0.00022086,2]
[387171981,1758606644463,-406.66,0.00022086,2]
[387171982,1758606644471,-488.81,0.00022086,2]
[387171983,1758606644482,-533.32,0.000221,3]